bitfinex-derivatives/quotes_ETHF0:USTF0_20251211
["timestamp","ask_amount","ask_price","bid_price","bid_amount"]
[1765484653044,1.4272,3210.3,3210.2,0.15573]
[1765484653439,1.4272,3210.3,3210.2,0.87113]
[1765484653744,0.6842,3210.3,3210.2,1.57133]
[1765484653938,1.4272,3210.3,3210.2,1.57133]
[1765484654239,1.4272,3210.3,3210.2,0.87113]
[1765484654937,1.4272,3210.3,3209.9,3.2078]
[1765484655147,0.15577,3209.6,3208.5,0.59482]
[1765484655442,2.32489648,3209.1,3209.0,0.439]
[1765484655631,5.53269648,3209.1,3209.0,0.439]
[1765484655831,11.53269648,3209.1,3209.0,0.11839472]
[1765484656034,11.53269648,3209.1,3208.5,0.439]
[1765484656241,3.2078,3208.6,3208.5,0.44367326]
[1765484657251,3.2078,3208.6,3208.5,0.44645688]
[1765484662652,3.2078,3208.6,3208.5,0.11646734]
[1765484663254,9.2078,3208.6,3208.0,0.439]
[1765484663454,5.53269648,3208.1,3208.0,0.439]
[1765484663647,5.53269648,3208.1,3207.5,0.439]
[1765484663846,5.53269648,3207.6,3207.5,0.439]
[1765484664149,3.21154844,3207.6,3207.5,1.26079357]
[1765484664354,3.21154844,3207.6,3207.5,0.44249357]
[1765484665041,3.21154844,3207.6,3207.5,2.20696357]
[1765484667555,3.21154844,3207.6,3207.5,8.20696357]
[1765484668053,3.2078,3208.1,3208.0,2.0769]
[1765484668243,4.8574,3208.1,3208.0,0.4683]
[1765484668444,4.8574,3208.1,3207.7,0.15586]
[1765484668947,4.85968017,3208.1,3207.7,0.15586]
[1765484669154,0.8104,3207.8,3207.7,1.76446]
[1765484669458,3.21008017,3208.1,3207.7,1.76446]
[1765484670851,1.6496,3207.6,3207.5,0.00349357]
[1765484671055,1.6496,3207.6,3207.5,0.82179357]
[1765484671355,1.6496,3207.6,3207.5,0.00349357]
[1765484671747,3.2078,3207.7,3206.6,3.2078]
[1765484671748,1.6496,3206.7,3206.6,3.2078]
[1765484671954,0.8104,3206.4,3206.3,0.97423]
[1765484672156,0.37137326,3207.0,3206.3,1.76453]
[1765484673054,0.37137326,3207.0,3206.3,1.76800991]
[1765484674454,0.8392,3205.8,3205.3,4.0261]
[1765484674656,0.8104,3205.4,3205.3,4.0261]
[1765484674958,1.6496,3205.4,3205.3,3.2078]
[1765484675156,0.8104,3205.4,3205.3,4.8164]
[1765484675354,3.2078,3206.2,3205.3,4.8164]
[1765484675559,3.21102806,3206.2,3205.5,0.4683]
[1765484675961,0.00322806,3206.2,3206.1,1.76454]
[1765484677556,0.00322806,3206.2,3205.7,3.2078]
[1765484677557,3.21102806,3206.2,3205.7,1.6086]
[1765484677852,3.21102806,3206.2,3205.3,0.00319756]
[1765484677853,1.6496,3205.4,3205.3,0.00319756]
[1765484678560,4.8574,3205.4,3205.3,0.00319756]
[1765484679259,4.0182,3205.4,3205.3,0.82149756]
[1765484679658,0.3406,3205.2,3204.4,4.0261]
[1765484679860,3.2078,3205.0,3204.4,4.0261]
[1765484680158,3.2078,3205.0,3204.9,0.8183]
[1765484680560,3.2078,3205.0,3204.9,0.82154158]
[1765484680758,0.00467326,3205.1,3205.0,1.6086]
[1765484680962,1.6496,3205.0,3204.9,0.00324158]
[1765484681962,3.97449648,3205.0,3204.9,0.00324158]
[1765484682557,3.21247326,3205.1,3204.9,0.82154158]
[1765484682954,0.8104,3205.0,3204.9,0.82154158]
[1765484683653,1.6496,3205.0,3204.9,0.00324158]
[1765484684959,5.30284598,3205.0,3204.9,0.00324158]
[1765484686459,4.83804598,3205.0,3204.9,0.00324158]
[1765484686765,4.83804598,3205.0,3203.7,3.2078]
[1765484686766,1.6496,3203.8,3203.7,3.2078]
[1765484686962,3.2078,3204.1,3203.7,1.6086]
[1765484687366,4.0182,3204.1,3204.0,1.2866]
[1765484687567,4.0182,3204.1,3204.0,2.0769]
[1765484687868,4.02059212,3204.1,3204.0,2.07991651]
[1765484688168,4.02059212,3204.1,3204.0,1.28961651]
[1765484688670,4.02059212,3204.1,3204.0,2.07991651]
[1765484689262,3.21019212,3204.1,3204.0,2.07991651]
[1765484689466,0.00239212,3204.1,3204.0,2.07991651]
[1765484690470,4.92729212,3204.1,3204.0,0.00301651]
[1765484690668,8.11379871,3204.1,3204.0,0.00301651]
[1765484694077,8.11379871,3204.1,3203.5,0.4683]
[1765484694078,1.7171,3203.6,3203.5,0.4683]
[1765484694269,3.2078,3203.6,3203.5,2.2789]
[1765484694879,4.0674,3204.0,3203.9,1.8106]
[1765484695075,4.0674,3204.0,3203.9,1.81462955]
[1765484695375,3.2078,3204.0,3203.9,1.81462955]
[1765484695975,4.0674,3204.0,3203.9,1.81462955]
[1765484696170,3.2078,3204.0,3203.9,1.81462955]
[1765484696577,3.2078,3204.0,3203.9,1.97066955]
[1765484701187,3.2078,3204.8,3204.7,1.8106]
[1765484701386,5.7903366,3204.8,3204.7,0.8957]
[1765484701686,0.8596,3204.6,3204.5,2.3524]
[1765484701987,4.9249,3204.8,3204.7,0.8957]
[1765484702180,5.79344917,3204.8,3204.7,1.8106]
[1765484702381,5.79344917,3204.8,3204.7,0.8957]
[1765484703079,1.7171,3204.7,3204.0,3.7496]
[1765484703284,1.7171,3204.1,3204.0,0.15604]
[1765484703479,2.58316959,3204.1,3204.0,0.15604]
[1765484704480,1.7171,3203.3,3203.2,3.2078]
[1765484704788,1.7171,3203.3,3203.1,1.96668]
[1765484704789,0.8596,3203.2,3203.1,1.96668]
[1765484705088,2.58316959,3203.2,3203.1,1.05178]
[1765484705580,2.58316959,3203.2,3203.1,1.05557517]
[1765484705781,1.72566959,3203.2,3203.1,1.05557517]
[1765484705986,2.58316959,3203.2,3203.1,1.05557517]
[1765484706684,0.86606959,3203.2,3203.1,1.97047517]
[1765484707081,2.58316959,3203.2,3203.1,0.15987517]
[1765484707785,2.58316959,3203.2,3203.1,0.00379517]
[1765484714488,2.58316959,3203.2,3203.1,0.89949517]
[1765484714894,2.58316959,3203.2,3203.1,1.97047517]
[1765484714895,1.72566959,3203.2,3203.1,1.97047517]
[1765484715194,1.7171,3203.2,3203.1,1.97047517]
[1765484715399,3.2078,3203.3,3203.2,1.96668]
[1765484715894,4.0674,3203.3,3203.2,1.96668]
[1765484716297,3.2078,3203.3,3203.2,1.96668]
[1765484718397,3.2078,3203.3,3202.7,3.2078]
[1765484718398,3.117,3202.7,3199.2,3.81597914]
[1765484718598,3.2078,3199.5,3199.0,0.3498]
[1765484718790,1.65688392,3201.3,3199.0,0.3498]
[1765484718791,2.1,3199.6,3199.5,0.4803]
[1765484718989,0.87313876,3199.6,3199.5,0.4803]
[1765484719193,0.87313876,3199.6,3199.5,5.1651]
[1765484719392,0.87713094,3199.6,3199.5,5.16735158]
[1765484719695,4.08493094,3199.6,3199.5,11.16735158]
[1765484719893,4.08493094,3199.6,3199.5,5.16735158]
[1765484720499,4.08493094,3199.6,3199.5,0.48255158]
[1765484720903,4.08493094,3199.6,3199.5,5.16735158]
[1765484721501,4.08493094,3199.6,3199.5,0.48255158]
[1765484721698,2.72524842,3199.2,3199.0,0.3498]
[1765484722009,0.86845016,3199.1,3199.0,0.3498]
[1765484722304,0.86845016,3199.1,3199.0,5.0346]
[1765484722699,0.86845016,3199.1,3199.0,0.35249549]
[1765484722900,2.85530451,3198.8,3198.5,0.5418]
[1765484723104,0.86845016,3198.7,3198.6,4.6848]
[1765484723809,0.86845016,3198.7,3198.6,8.5813481]
[1765484724510,2.85530451,3198.8,3198.7,3.8935]
[1765484724700,3.83666579,3198.8,3198.7,3.8935]
[1765484725199,0.00868078,3199.6,3199.5,3.8935]
[1765484725400,3.21648078,3199.6,3199.5,3.8935]
[1765484726011,5.08368078,3199.6,3199.0,1.2083]
[1765484726309,0.00868078,3199.6,3199.5,6.6035]
[1765484726504,3.21648078,3199.6,3199.5,8.5783]
[1765484727208,3.21648078,3199.6,3199.5,8.5243]
[1765484727508,3.21648078,3199.6,3199.5,8.68056]
[1765484727806,3.21648078,3199.6,3199.0,1.2083]
[1765484727807,3.2078,3199.2,3199.0,1.2083]
[1765484728111,3.2078,3199.1,3199.0,1.2083]
[1765484728701,4.26791756,3199.6,3198.6,0.0030481]
[1765484728702,3.2078,3198.7,3198.6,0.0030481]
[1765484729205,3.2078,3198.7,3197.7,0.15634]
[1765484729401,3.2078,3198.1,3197.8,0.15634]
[1765484730005,3.2078,3198.1,3198.0,0.54579332]
[1765484730205,3.2078,3198.1,3198.0,0.00399332]
[1765484730406,5.81015286,3198.1,3197.6,1.2083]
[1765484730600,15.15873254,3200.0,3197.6,1.36465]
[1765484730601,3.2078,3197.7,3197.6,1.36465]
[1765484731407,3.2078,3197.7,3197.6,1.36723144]
[1765484732306,4.25923678,3198.8,3197.9,0.15634]
[1765484732504,3.2078,3198.0,3197.9,0.15634]
[1765484732708,3.2078,3198.3,3198.2,0.15632]
[1765484732904,3.1587477,3198.3,3198.2,0.15632]
[1765484733104,3.2078,3198.7,3198.6,0.1563]
[1765484733302,0.0046886,3199.0,3198.6,0.1563]
[1765484734312,1.1970886,3199.0,3198.6,0.1563]
[1765484734809,0.0046886,3199.0,3198.6,0.1563]
[1765484735407,3.2078,3198.7,3198.3,0.0046886]
[1765484737414,1.0018407,3198.6,3198.3,0.0046886]
[1765484737608,3.2078,3198.7,3198.3,0.0046886]
[1765484737609,1.0018407,3198.5,3198.3,0.0046886]
[1765484737915,1.00224945,3198.4,3198.3,0.0046886]
[1765484738107,1.00224945,3198.4,3198.3,0.1610086]
[1765484738715,4.74304945,3198.4,3198.3,0.0046886]
[1765484739519,1.1924,3198.3,3197.6,0.15893144]
[1765484739713,1.1924,3198.3,3197.6,0.00258144]
[1765484739714,1.8672,3197.7,3197.6,0.00258144]
[1765484739910,4.74304945,3197.7,3197.6,0.00258144]
[1765484740820,1.00224945,3197.7,3197.6,1.92128144]
[1765484741019,1.00224945,3197.7,3197.6,3.89608144]
[1765484741520,1.00224945,3197.7,3197.6,11.26073144]
[1765484741719,3.2078,3198.6,3197.6,7.21088144]
[1765484741918,1.0042863,3198.5,3198.4,1.9187]
[1765484742614,1.0042863,3198.5,3198.0,0.15633]
[1765484742822,2.64221633,3198.4,3198.0,0.15633]
[1765484743026,1.0042863,3198.3,3198.2,1.9187]
[1765484744120,2.64221633,3198.3,3198.1,0.15633]
[1765484744314,2.64520069,3198.2,3198.1,0.15633]
[1765484744516,4.7450863,3198.2,3198.1,0.15633]
[1765484744717,7.9528863,3198.2,3198.1,0.15633]
[1765484745021,5.85285592,3198.2,3198.1,2.07503]
[1765484745216,4.2120863,3198.2,3198.1,2.07503]
[1765484745421,7.9528863,3198.2,3198.1,0.15633]
[1765484745716,4.2120863,3198.2,3198.1,4.04983]
[1765484746024,1.0042863,3198.2,3198.1,4.04983]
[1765484746224,4.2120863,3198.2,3198.1,4.04983]
[1765484746423,4.2120863,3198.2,3198.1,2.07503]
[1765484747521,6.41214542,3198.2,3198.1,2.07503]
[1765484747723,3.20434542,3198.2,3198.1,4.04983]
[1765484747925,2.65456365,3198.2,3198.1,4.04983]
[1765484748225,3.20434542,3198.2,3198.1,4.04983]
[1765484748422,2.66117087,3198.2,3198.1,4.04983]
[1765484748817,1.0042863,3198.2,3198.1,4.04983]
[1765484749219,2.66117087,3198.2,3198.1,4.04983]
[1765484749420,1.0042863,3198.2,3198.1,4.04983]
[1765484749823,1.0042863,3198.2,3198.1,10.04983]
[1765484753321,1.0042863,3198.2,3198.1,4.04983]
[1765484753529,1.0042863,3198.2,3198.1,0.15633]
[1765484753530,9.7864863,3198.2,3198.1,0.15633]
[1765484758330,4.2120863,3198.2,3198.1,5.68663]
[1765484758634,7.0257863,3198.2,3198.1,3.00503]
[1765484758834,4.2120863,3198.2,3198.1,5.68663]
[1765484759434,1.0042863,3198.2,3198.1,8.89443]
[1765484760129,1.0042863,3198.2,3198.1,0.15633]
[1765484760130,9.65789207,3198.2,3198.1,0.15633]
[1765484760833,4.08349207,3198.2,3198.1,5.68663]
[1765484761131,9.65789207,3198.2,3198.1,0.15633]
[1765484762529,5.5744,3197.7,3197.6,0.00258144]
[1765484762734,8.79673145,3197.7,3197.6,0.00258144]
[1765484764937,0.87569207,3197.7,3197.6,5.53288144]
[1765484765139,8.79673145,3197.7,3197.6,0.00258144]
[1765484765340,3.68939207,3197.7,3197.6,2.85128144]
[1765484765534,8.79673145,3197.7,3197.6,0.00258144]
[1765484765931,6.45009207,3197.7,3197.6,0.00258144]
[1765484767636,3.68939207,3197.7,3197.6,3.00763144]
[1765484767843,3.2078,3197.8,3197.7,5.68664]
[1765484768238,3.2078,3198.2,3198.0,0.15633]
[1765484768438,3.2078,3198.2,3198.1,3.00503]
[1765484768641,6.0215,3198.2,3198.1,3.00503]
[1765484768940,3.2078,3198.2,3198.1,5.68663]
[1765484770648,3.2124886,3199.0,3198.7,0.15629]
[1765484770952,6.0261886,3199.0,3198.9,2.8487]
[1765484771352,8.7868886,3199.0,3198.7,0.1563]
[1765484771954,5.5744,3198.8,3198.7,0.1563]
[1765484772156,2.8137,3198.8,3198.7,3.005]
[1765484772556,3.2124886,3199.0,3198.7,3.005]
[1765484772856,6.0261886,3199.0,3198.9,3.00499]
[1765484773751,8.7868886,3199.0,3198.9,0.15629]
[1765484774755,6.0261886,3199.0,3198.9,5.68659]
[1765484774959,3.2124886,3199.0,3198.9,5.68659]
[1765484775660,0.0046886,3199.0,3198.9,5.68659]
[1765484776855,5.5790886,3199.0,3198.9,0.15629]
[1765484777056,10.3570886,3199.0,3198.9,0.15629]
[1765484778360,6.0261886,3199.0,3198.9,5.36679]
[1765484778549,3.2124886,3199.0,3198.9,5.36679]
[1765484781458,0.0046886,3199.0,3198.9,5.36679]
[1765484782361,0.00399218,3199.6,3199.5,5.11236]
[1765484783966,2.52529218,3199.6,3199.5,2.65786]
[1765484784265,0.00399218,3199.6,3199.5,5.11236]
[1765484786466,0.00399218,3199.6,3199.5,6.27786]
[1765484786970,1e-08,3199.6,3199.5,6.27786]
[1765484787268,8.26450001,3199.6,3199.5,0.15626]
[1765484787566,5.0567,3199.3,3199.2,0.0046886]
[1765484790864,5.0567,3199.3,3198.7,3.2078]
[1765484790865,5.0567,3198.8,3198.7,3.2078]
[1765484791070,5.0567,3198.6,3198.5,0.15631]
[1765484791569,2.5213,3198.6,3198.5,5.11241]
[1765484792068,5.7291,3198.8,3198.7,2.5016]
[1765484792263,8.2645,3198.8,3198.7,2.5016]
[1765484792663,8.2645,3198.8,3198.7,2.6579]
[1765484793359,8.2645,3198.8,3198.7,0.1563]
[1765484800879,2.34663938,3198.9,3198.8,5.11239]
[1765484800880,3.2078,3198.9,3198.8,5.11239]
[1765484801081,5.7291,3198.9,3198.8,5.11239]
[1765484802982,8.2645,3198.9,3198.8,0.15629]
[1765484803388,8.2645,3198.9,3198.8,2.65789]
[1765484804480,8.2645,3198.9,3198.8,0.15629]
[1765484804784,8.2645,3198.9,3198.8,2.65789]
[1765484805490,8.2645,3198.9,3198.8,5.11239]
[1765484805985,8.2645,3198.9,3198.8,2.65789]
[1765484806492,8.2645,3198.9,3198.8,5.11239]
[1765484806689,8.2645,3198.9,3198.8,2.65789]
[1765484807487,8.2645,3198.9,3198.8,5.11239]
[1765484809881,8.2645,3198.9,3198.8,2.65789]
[1765484810683,4.4551,3198.4,3198.3,3.2078]
[1765484811485,3.2078,3198.4,3198.2,0.15632]
[1765484811687,4.4551,3198.3,3198.2,0.15632]
[1765484812185,4.4551,3197.7,3197.6,2.40623144]
[1765484812385,4.4551,3197.7,3197.6,4.66163144]
[1765484813084,2.1709,3197.7,3197.6,4.66163144]
[1765484813278,4.4551,3197.7,3197.6,2.40623144]
[1765484813882,4.4551,3197.7,3197.6,4.66163144]
[1765484814085,4.4551,3197.7,3197.6,0.15893144]
[1765484814384,4.4551,3197.7,3197.6,2.40623144]
[1765484814584,4.4551,3197.7,3197.6,4.66163144]
[1765484815188,4.4551,3197.7,3197.6,2.40623144]
[1765484815881,3.2078,3197.8,3197.7,4.65904]
[1765484816086,5.3787,3197.8,3197.7,4.65904]
[1765484816386,7.6629,3197.8,3197.7,2.40364]
[1765484818287,4.4551,3197.8,3197.7,4.65904]
[1765484818486,4.4551,3197.8,3197.7,2.40364]
[1765484818886,4.4551,3197.8,3197.7,4.65904]
[1765484819083,2.1709,3197.8,3197.7,4.65904]
[1765484819283,5.7518886,3198.0,3197.9,4.65904]
[1765484819486,5.7518886,3198.0,3197.9,2.40364]
[1765484819687,5.7518886,3198.0,3197.9,0.15634]
[1765484820291,5.7518886,3198.0,3197.9,2.40364]
[1765484820685,5.7518886,3198.0,3197.9,0.15634]
[1765484822194,5.7518886,3198.0,3197.9,2.40364]
[1765484822492,5.7518886,3198.0,3197.9,0.15634]
[1765484822693,0.0046886,3198.0,3197.9,4.65904]
[1765484823693,2.1755886,3198.0,3197.9,4.65904]
[1765484823895,5.7518886,3198.0,3197.9,0.15634]
[1765484824900,5.7518886,3198.0,3197.9,2.40364]
[1765484825197,5.7518886,3198.0,3197.9,4.65904]
[1765484825393,0.0046886,3198.0,3197.9,4.65904]
[1765484825701,5.7518886,3198.0,3197.9,0.15634]
[1765484826097,5.7518886,3198.0,3197.9,2.40364]
[1765484826796,5.7518886,3198.0,3197.9,4.65904]
[1765484826993,5.7518886,3198.0,3197.9,2.40364]
[1765484827196,5.7518886,3198.0,3197.9,0.15634]
[1765484827392,0.0046886,3198.0,3197.9,4.65904]
[1765484828105,5.7518886,3198.0,3197.9,2.40364]
[1765484828396,5.7518886,3198.0,3197.9,0.15634]
[1765484830903,5.7518886,3198.0,3196.9,3.92362495]
[1765484830904,5.7472,3197.0,3196.9,0.15638]
[1765484831498,5.7472,3197.0,3196.9,4.65908]
[1765484831699,2.1709,3197.0,3196.9,4.65908]
[1765484831897,2.1747908,3197.0,3196.9,4.66137438]
[1765484832096,4.4589908,3197.0,3196.9,4.66137438]
[1765484832398,5.7510908,3197.0,3196.9,0.15867438]
[1765484833197,5.7510908,3197.0,3196.9,2.40597438]
[1765484833394,0.0038908,3197.0,3196.9,4.66137438]
[1765484833594,2.1747908,3197.0,3196.9,4.66137438]
[1765484834500,0.0038908,3197.0,3196.9,4.66137438]
[1765484834703,0.0038908,3197.0,3196.9,7.86917438]
[1765484835104,0.0038908,3197.0,3196.9,4.66137438]
[1765484836003,0.0038908,3197.0,3196.9,7.86917438]
[1765484838399,6.6708,3197.5,3197.4,4.53356]
[1765484838611,5.2859,3197.5,3197.4,4.53356]
[1765484838902,3.2078,3197.5,3197.4,4.53356]
[1765484839113,3.2078,3197.9,3197.8,4.13944]
[1765484839499,3.21078474,3197.9,3197.8,4.13944]
[1765484839698,0.00298474,3197.9,3197.8,4.13944]
[1765484841201,4.05068474,3197.9,3197.8,0.15634]
[1765484842508,7.25848474,3197.9,3197.8,0.15634]
[1765484842811,7.25848474,3197.9,3197.8,2.09634]
[1765484843210,7.25848474,3197.9,3197.8,0.15634]
[1765484848008,7.25848474,3197.9,3197.2,3.2078]
[1765484848009,4.0477,3197.3,3197.2,3.2078]
[1765484848209,4.0477,3197.3,3196.9,0.00229438]
[1765484848610,4.0477,3197.3,3197.2,1.94]
[1765484849616,4.4467,3197.5,3196.9,0.00229438]
[1765484849617,8.4944,3197.5,3197.4,4.13946]
[1765484850218,7.25848474,3197.9,3197.8,4.13944]
[1765484850414,3.21078474,3197.9,3197.8,4.13944]
[1765484850812,1.2921,3199.0,3197.8,4.13944]
[1765484850813,5.2409,3198.7,3198.6,4.1394]
[1765484851113,7.2555,3198.7,3198.6,4.1394]
[1765484851416,7.2555,3198.7,3198.6,2.0963]
[1765484851819,5.2409,3198.7,3198.6,4.1394]
[1765484852019,3.21154459,3198.7,3198.6,4.1394]
[1765484853718,5.24464459,3198.7,3198.6,4.1394]
[1765484854315,7.25924459,3198.7,3198.6,4.1394]
[1765484854616,7.25924459,3198.7,3198.6,2.0963]
[1765484854812,7.25924459,3198.7,3198.6,0.1563]
[1765484855218,7.25924459,3198.7,3198.6,2.0963]
[1765484855413,7.25924459,3198.7,3198.6,0.1563]
[1765484855912,7.25924459,3198.7,3198.6,2.0963]
[1765484856113,5.24464459,3198.7,3198.6,4.1394]
[1765484856311,7.25924459,3198.7,3198.6,4.1394]
[1765484856510,5.24464459,3198.7,3198.6,4.1394]
[1765484856819,7.25924459,3198.7,3198.6,0.1563]
[1765484859722,7.25924459,3198.7,3198.6,2.0963]
[1765484860219,7.25924459,3198.7,3198.6,0.1563]
[1765484860424,7.25924459,3198.7,3198.6,2.0963]
[1765484861531,7.25924459,3198.7,3198.6,0.1563]
[1765484861721,7.25924459,3198.7,3198.6,2.0963]
[1765484862130,7.25924459,3198.7,3198.6,4.1394]
[1765484862330,7.25924459,3198.7,3198.6,2.0963]
[1765484863824,7.25924459,3198.7,3198.6,4.1394]
[1765484864229,7.25924459,3198.7,3198.6,0.1563]
[1765484864823,5.24464459,3198.7,3198.6,4.1394]
[1765484865028,0.00374459,3198.7,3198.6,4.1394]
[1765484867029,2.03684459,3198.7,3198.6,4.1394]
[1765484867429,0.00374459,3198.7,3198.6,4.1394]
[1765484868330,0.00374459,3198.7,3198.3,3.2124886]
[1765484868331,5.2912886,3199.0,3198.9,2.09629]
[1765484868726,5.2912886,3199.0,3198.9,4.13939]
[1765484869122,4.4467,3199.5,3198.9,4.13939]
[1765484869123,3.2078,3199.5,3199.4,3.81026]
[1765484869321,5.1419,3199.5,3199.4,3.81286064]
[1765484869524,3.21029039,3199.5,3199.4,3.81286064]
[1765484870530,3.21029039,3199.5,3199.4,4.02618878]
[1765484872631,0.00249039,3199.5,3199.4,4.02618878]
[1765484878035,3.2078,3200.3,3199.4,4.02618878]
[1765484878036,6.9024,3200.3,3200.2,1.89872]
[1765484878236,6.9024,3200.3,3200.2,0.15622]
[1765484878535,4.7581,3199.5,3199.4,3.65660064]
[1765484878732,2.9976,3199.5,3199.4,3.86653391]
[1765484878939,4.7581,3200.0,3199.9,0.15624]
[1765484879135,4.76163514,3200.0,3199.9,0.15624]
[1765484879336,4.76163514,3200.0,3199.9,3.81024]
[1765484880038,4.76163514,3200.0,3199.9,1.89874]
[1765484880233,4.76163514,3200.0,3199.9,0.15624]
[1765484880438,4.7581,3199.5,3199.4,0.00260064]
[1765484880736,3.6946,3199.2,3199.1,0.0046886]
[1765484880938,6.9024,3199.2,3199.1,0.0046886]
[1765484881327,6.9024,3199.2,3199.1,0.1609686]
[1765484881731,4.7581,3199.5,3199.4,3.81026]
[1765484881937,4.7581,3199.5,3199.4,0.15626]
[1765484882140,4.7581,3199.5,3199.4,3.81026]
[1765484882838,3.2078,3199.8,3199.7,3.81025]
[1765484883335,0.00353514,3200.0,3199.9,0.15624]
[1765484883541,1.93763514,3200.0,3199.9,3.81024]
[1765484883943,0.00353514,3200.0,3199.9,3.81024]
[1765484886446,4.76163514,3200.0,3199.9,0.15624]
[1765484886644,4.76163514,3200.0,3199.9,1.89874]
[1765484886845,4.76163514,3200.0,3199.9,3.81024]
[1765484887340,1.93763514,3200.0,3199.9,3.81024]
[1765484887648,0.00353514,3200.0,3199.9,3.81024]
[1765484888244,2.9976,3201.0,3200.9,1.7425]
[1765484888447,4.7581,3201.0,3200.1,3.2078]
[1765484888646,7.9659,3201.0,3200.1,3.2078]
[1765484888849,7.9659,3201.0,3200.1,6.54069138]
[1765484889346,0.0046886,3200.9,3200.1,6.54069138]
[1765484889749,0.0046886,3200.9,3200.8,3.654]
[1765484889941,0.0046886,3200.9,3200.8,3.81019]
[1765484890146,3.2078,3201.4,3201.3,0.15617]
[1765484890147,3.6946,3201.4,3201.3,0.15617]
[1765484890354,6.9024,3201.4,3201.3,1.89867]
[1765484891351,6.90534873,3201.4,3201.3,1.89867]
[1765484891647,6.90534873,3201.4,3201.3,0.15617]
[1765484892052,6.90534873,3201.4,3201.3,1.89867]
[1765484892254,6.90534873,3201.4,3201.3,3.81017]
[1765484892860,6.90534873,3201.4,3201.3,1.89867]
[1765484893151,1.93704873,3201.4,3201.3,3.81017]
[1765484893657,3.69754873,3201.4,3201.3,1.89867]
[1765484893858,3.69754873,3201.4,3201.3,3.81017]
[1765484894059,1.93704873,3201.4,3201.3,3.81017]
[1765484894458,0.00294873,3201.4,3201.3,3.81017]
[1765484896356,0.00294873,3201.4,3201.3,4.02918929]
[1765484896557,0.00294873,3201.4,3201.3,7.45677015]
[1765484897957,0.0046886,3201.7,3201.6,3.54075]
[1765484898257,0.0046886,3201.7,3201.6,6.74855]
[1765484898955,0.00762169,3201.7,3201.6,6.75173661]
[1765484900558,3.29942169,3201.7,3201.6,5.07193661]
[1765484900759,3.29942169,3201.7,3201.6,0.15933661]
[1765484902458,1.61952169,3201.7,3201.6,3.55673661]
[1765484902664,0.00762169,3201.7,3201.6,6.76453661]
[1765484903058,1.61952169,3201.7,3201.6,3.55673661]
[1765484903662,0.00762169,3201.7,3201.6,6.76453661]
[1765484908162,6.4996,3202.3,3202.2,0.15613]
[1765484909167,6.50230548,3202.3,3202.2,0.15613]
[1765484909767,3.2918,3201.7,3201.6,0.00318661]
[1765484909966,1.024,3202.0,3201.6,0.00318661]
[1765484909967,1.024,3202.0,3201.9,0.15614]
[1765484910264,4.3158,3202.0,3201.9,0.15614]
[1765484910469,3.2918,3201.7,3201.6,0.00318661]
[1765484910664,1.024,3202.0,3201.9,3.3974]
[1765484910665,1.6119,3202.0,3201.9,3.3974]
[1765484910865,6.50230548,3202.3,3202.2,3.55353]
[1765484911175,6.50230548,3202.3,3202.2,1.84293]
[1765484911373,6.50230548,3202.3,3202.2,0.15613]
[1765484913070,3.2918,3201.7,3201.6,0.00318661]
[1765484913266,3.2918,3201.7,3201.6,0.15933661]
[1765484917581,3.2918,3201.7,3201.6,3.55673661]
[1765484918283,3.2918,3201.7,3201.6,1.84613661]
[1765484919278,3.06104561,3201.9,3201.8,3.55354]
[1765484919482,6.50230548,3202.3,3202.2,0.15613]
[1765484920380,12.50230548,3202.3,3202.2,0.15613]
[1765484920579,3.2918,3201.7,3201.6,0.00318661]
[1765484921075,3.2918,3201.7,3201.6,0.15933661]
[1765484929487,3.2078,3201.9,3201.8,0.15614]
[1765484929687,3.2078,3201.9,3201.8,8.09249159]
[1765484929688,1.5593,3201.9,3201.8,8.09249159]
[1765484930197,3.1233,3201.9,3201.8,6.46704]
[1765484931595,6.33380548,3202.3,3202.2,1.65743]
[1765484931798,6.33380548,3202.3,3202.2,0.15613]
[1765484932697,6.33380548,3202.3,3202.2,1.65743]
[1765484934099,6.33380548,3202.3,3202.2,3.25923]
[1765484934801,0.00270548,3202.3,3202.2,3.25923]
[1765484934997,3.12600548,3202.3,3202.2,1.65743]
[1765484935896,3.12600548,3202.3,3202.2,3.25923]
[1765484937002,3.12600548,3202.3,3202.2,0.15613]
[1765484937205,3.1233,3201.9,3201.8,3.2078]
[1765484937404,3.1233,3201.9,3201.8,4.7091]
[1765484938498,3.1233,3201.9,3201.8,4.86524]
[1765484939298,3.1233,3201.9,3201.8,3.36394]
[1765484939697,3.1233,3201.9,3201.8,4.86524]
[1765484939895,3.1233,3201.9,3201.8,6.46704]
[1765484940400,3.12600548,3202.3,3202.2,3.25923]
[1765484941001,0.00270548,3202.3,3202.2,3.25923]
[1765484941405,0.00270548,3202.3,3202.2,6.46703]
[1765484942306,3.12600548,3202.3,3202.2,0.15613]
[1765484942697,0.00270548,3202.3,3202.2,3.25923]
[1765484943102,1.56200548,3202.3,3202.2,3.25923]
[1765484943303,3.12600548,3202.3,3202.2,0.15613]
[1765484944607,3.12600548,3202.3,3202.2,3.25923]
[1765484944811,3.12600548,3202.3,3202.2,1.65743]
[1765484946108,3.12600548,3202.3,3202.2,3.25923]
[1765484948007,3.12600548,3202.3,3202.2,1.65743]
[1765484949618,3.12600548,3202.3,3202.2,3.25923]
[1765484950112,0.00270548,3202.3,3202.2,3.25923]
[1765484950616,1.56200548,3202.3,3202.2,3.25923]
[1765484951414,0.00270548,3202.3,3202.2,3.25923]
[1765484952916,4.70988338,3202.3,3202.2,0.15613]
[1765484953116,7.91768338,3202.3,3202.2,0.15613]
[1765484953513,6.33380548,3202.3,3202.2,0.15613]
[1765484955018,3.12600548,3202.3,3202.2,0.15613]
[1765484955215,3.12600548,3202.3,3202.2,1.65743]
[1765484957325,1.56200548,3202.3,3202.2,3.16563]
[1765484957525,1.49070548,3202.3,3202.2,3.16563]
[1765484957727,2.86850548,3202.3,3202.2,3.16563]
[1765484957926,2.86850548,3202.3,3202.2,1.65743]
[1765484958127,2.86850548,3202.3,3202.2,0.15613]
[1765484965033,2.86850548,3202.3,3202.2,2.96693]
[1765484965532,2.86850548,3202.3,3202.2,0.15613]
[1765484968231,2.86850548,3202.3,3202.2,1.51373]